fUST/lending_fUST_20240802
["ID","MTS","AMOUNT","RATE_DAILY","PERIOD"]
[333818298,1722528641515,-500.0,0.00013961,2]
[333818299,1722528641524,-500.0,0.00013961,2]
[333818300,1722528641533,-1137.69,0.00013961,2]
[333818301,1722528641543,-1137.69,0.00013961,2]
[333818302,1722528641552,-879.26,0.00013971,2]
[333818303,1722528641562,-500.0,0.00013971,2]
[333818304,1722528641572,-1137.69,0.00013971,2]
[333818305,1722528641581,-500.0,0.00013972,2]
[333818307,1722528641591,-500.0,0.00013972,2]
[333818308,1722528641600,-500.0,0.00013972,2]
[333818310,1722528641610,-500.0,0.00013972,2]
[333818312,1722528641619,-500.0,0.00013972,2]
[333818313,1722528641628,-500.0,0.00013972,2]
[333818314,1722528641638,-500.0,0.00013972,2]
[333818316,1722528641647,-500.0,0.00013972,2]
[333818318,1722528641656,-500.0,0.00013972,2]
[333818320,1722528641665,-500.0,0.00013972,2]
[333818321,1722528641674,-500.0,0.00013972,2]
[333818323,1722528641684,-500.0,0.00013972,2]
[333818325,1722528641709,-156.29891983,0.00013972,2]
[333818327,1722528641719,-500.0,0.00013972,2]
[333818329,1722528641729,-500.0,0.00013972,2]
[333818331,1722528641738,-221.61214493,0.00013972,2]
[333818333,1722528641751,-278.38785507,0.00013972,2]
[333818335,1722528641760,-500.0,0.00013972,2]
[333818336,1722528641769,-500.0,0.00013972,2]
[333818338,1722528641778,-500.0,0.00013972,2]
[333818340,1722528641787,-500.0,0.00013972,2]
[333818341,1722528641797,-500.0,0.00013972,2]
[333818343,1722528641806,-500.0,0.00013972,2]
[333818345,1722528641815,-500.0,0.00013972,2]
[333818347,1722528641825,-340.07051285,0.00013972,2]
[333818348,1722528641834,-500.0,0.00013972,2]
[333818350,1722528641844,-500.0,0.00013972,2]
[333818352,1722528641854,-500.0,0.00013972,2]
[333818353,1722528641863,-500.0,0.00013972,2]
[333818354,1722528641872,-500.0,0.00013972,2]
[333818355,1722528641882,-500.0,0.00013972,2]
[333818356,1722528641892,-500.0,0.00013972,2]
[333818357,1722528641902,-500.0,0.00013972,2]
[333818358,1722528641911,-77.61535326,0.00013972,2]
[333818369,1722528642508,-500.0,0.00013698,2]
[333818370,1722528642518,-500.0,0.00013698,2]
[333818371,1722528642529,-500.0,0.00013698,2]
[333818372,1722528642538,-422.38464674,0.00013972,2]
[333818373,1722528642548,-550.1,0.00013972,2]
[333818375,1722528642558,-500.0,0.00013972,2]
[333818376,1722528642570,-500.0,0.00013972,2]
[333818377,1722528642579,-500.0,0.00013972,2]
[333818378,1722528642589,-500.0,0.00013972,2]
[333818379,1722528642598,-500.0,0.00013972,2]
[333818380,1722528642607,-500.0,0.00013972,2]
[333818382,1722528642617,-500.0,0.00013972,2]
[333818384,1722528642627,-500.0,0.00013972,2]
[333818386,1722528642637,-500.0,0.00013972,2]
[333818388,1722528642646,-497.91843124,0.00013972,2]
[333818390,1722528642656,-500.0,0.00013972,2]
[333818392,1722528642665,-500.0,0.00013972,2]
[333818394,1722528642675,-500.0,0.00013972,2]
[333818396,1722528642685,-500.0,0.00013972,2]
[333818398,1722528642695,-500.0,0.00013972,2]
[333818400,1722528642705,-500.0,0.00013972,2]
[333818402,1722528642715,-500.0,0.00013972,2]
[333818404,1722528642742,-500.0,0.00013972,2]
[333818406,1722528642751,-500.0,0.00013972,2]
[333818408,1722528642762,-907.32,0.00013972,2]
[333818410,1722528642772,-500.0,0.00013972,2]
[333818412,1722528642782,-1331.99,0.00013972,2]
[333818414,1722528642792,-205.54255952,0.00013972,2]
[333818416,1722528642802,-500.0,0.00013972,2]
[333818418,1722528642812,-500.0,0.00013972,2]
[333818420,1722528642822,-500.0,0.00013972,2]
[333818422,1722528642832,-561.83,0.00013972,2]
[333818424,1722528642842,-838.19,0.00013972,2]
[333818426,1722528642851,-500.0,0.00013972,2]
[333818428,1722528642862,-500.0,0.00013972,2]
[333818430,1722528642872,-874.15,0.00013972,2]
[333818432,1722528642882,-538.3,0.00013972,2]
[333818434,1722528642891,-2132.52,0.00013972,2]
[333818436,1722528642901,-1895.04,0.00013972,2]
[333818438,1722528642910,-500.0,0.00013972,2]
[333818440,1722528642920,-500.0,0.00013972,2]
[333818442,1722528642931,-500.0,0.00013972,2]
[333818444,1722528642940,-506.33901798,0.00013972,2]
[333818446,1722528642950,-500.0,0.00013972,2]
[333818448,1722528642960,-500.0,0.00013972,2]
[333818450,1722528642970,-500.0,0.00013972,2]
[333818452,1722528642980,-500.0,0.00013972,2]
[333818454,1722528642989,-500.0,0.00013972,2]
[333818456,1722528642999,-500.0,0.00013972,2]
[333818458,1722528643009,-2759.59,0.00013972,2]
[333818460,1722528643018,-500.0,0.00013972,2]
[333818462,1722528643028,-484.94979005,0.00013972,2]
[333818464,1722528643038,-500.0,0.00013972,2]
[333818466,1722528643048,-500.0,0.00013972,2]
[333818468,1722528643058,-686.04,0.00013972,2]
[333818469,1722528643068,-500.0,0.00013972,2]
[333818471,1722528643078,-785.38,0.00013972,2]
[333818473,1722528643088,-500.0,0.00013972,2]
[333818474,1722528643098,-500.0,0.00013972,2]
[333818476,1722528643107,-594.26768528,0.00013972,2]
[333818478,1722528643117,-500.0,0.00013972,2]
[333818480,1722528643127,-815.61,0.00013972,2]
[333818482,1722528643139,-500.0,0.00013972,2]
[333818484,1722528643148,-500.0,0.00013972,2]
[333818485,1722528643158,-812.04,0.00013972,2]
[333818487,1722528643168,-500.0,0.00013972,2]
[333818488,1722528643179,-500.0,0.00013972,2]
[333818489,1722528643189,-500.0,0.00013972,2]
[333818490,1722528643199,-547.63964332,0.00013972,2]
[333818491,1722528643209,-2585.36,0.00013972,2]
[333818492,1722528643221,-500.0,0.00013972,2]
[333818493,1722528643231,-547.45,0.00013972,2]
[333818494,1722528643241,-500.0,0.00013972,2]
[333818495,1722528643251,-500.0,0.00013972,2]
[333818496,1722528643263,-500.0,0.00013972,2]
[333818497,1722528643273,-500.0,0.00013972,2]
[333818498,1722528643283,-1517.4,0.00013972,2]
[333818499,1722528643292,-652.72,0.00013972,2]
[333818500,1722528643301,-500.0,0.00013972,2]
[333818501,1722528643311,-862.86,0.00013972,2]
[333818502,1722528643320,-500.0,0.00013972,2]
[333818503,1722528643329,-500.0,0.00013972,2]
[333818504,1722528643338,-238.18427848,0.00013972,2]
[333818505,1722528643347,-500.0,0.00013972,2]
[333818506,1722528643357,-500.0,0.00013972,2]
[333818507,1722528643366,-506.63770059,0.00013972,2]
[333818508,1722528643375,-500.0,0.00013972,2]
[333818509,1722528643384,-500.0,0.00013972,2]
[333818510,1722528643394,-500.0,0.00013972,2]
[333818511,1722528643404,-500.0,0.00013972,2]
[333818512,1722528643414,-500.0,0.00013972,2]
[333818513,1722528643423,-500.0,0.00013972,2]
[333818514,1722528643433,-500.0,0.00013972,2]
[333818515,1722528643443,-500.0,0.00013972,2]
[333818516,1722528643452,-500.0,0.00013972,2]
[333818517,1722528643461,-500.0,0.00013972,2]
[333818518,1722528643471,-508.13183793,0.00013972,2]
[333818519,1722528643481,-500.0,0.00013972,2]
[333818520,1722528643490,-453.06958532,0.00013972,2]
[333818521,1722528643500,-500.0,0.00013972,2]
[333818522,1722528643509,-500.0,0.00013972,2]
[333818523,1722528643519,-500.0,0.00013972,2]
[333818524,1722528643528,-500.0,0.00013972,2]
[333818525,1722528643538,-500.0,0.00013972,2]
[333818526,1722528643548,-500.0,0.00013972,2]
[333818527,1722528643558,-500.0,0.00013972,2]
[333818528,1722528643567,-500.0,0.00013972,2]
[333818529,1722528643576,-500.0,0.00013972,2]
[333818530,1722528643586,-500.0,0.00013972,2]
[333818531,1722528643596,-500.0,0.00013972,2]
[333818532,1722528643606,-500.0,0.00013972,2]
[333818533,1722528643615,-700.06,0.00013972,2]
[333818534,1722528643625,-500.0,0.00013972,2]
[333818535,1722528643634,-548.51,0.00013972,2]
[333818536,1722528643644,-612.69,0.00013972,2]
[333818537,1722528643653,-500.0,0.00013972,2]
[333818538,1722528643663,-500.0,0.00013972,2]
[333818539,1722528643672,-500.0,0.00013972,2]
[333818540,1722528643682,-500.0,0.00013972,2]
[333818541,1722528643691,-500.0,0.00013972,2]
[333818542,1722528643700,-190.54155228,0.00014,2]
[333818543,1722528643710,-1137.69,0.00014234,2]
[333818544,1722528643719,-879.26,0.00014235,2]
[333818545,1722528643728,-879.26,0.00014235,2]
[333818546,1722528643738,-238.77,0.00014235,2]
[333818547,1722528643748,-879.26,0.00014245,2]
[333818548,1722528643757,-1137.69,0.00014245,2]
[333818549,1722528643767,-1137.69,0.00014245,2]
[333818550,1722528643777,-1137.69,0.00014245,2]
[333818551,1722528643786,-1137.69,0.00014245,2]
[333818552,1722528643796,-1137.9075,0.00014245,2]
[333818553,1722528643806,-579.53360955,0.00014246,2]
[333818554,1722528643815,-500.0,0.00014246,2]
[333818555,1722528643824,-500.0,0.00014246,2]
[333818556,1722528643834,-500.0,0.00014246,2]
[333818557,1722528643844,-500.0,0.00014246,2]
[333818558,1722528643853,-500.0,0.00014246,2]
[333818559,1722528643862,-500.0,0.00014246,2]
[333818560,1722528643874,-500.0,0.00014246,2]
[333818561,1722528643884,-500.0,0.00014246,2]
[333818562,1722528643893,-500.0,0.00014246,2]
[333818563,1722528643903,-500.0,0.00014246,2]
[333818564,1722528643913,-500.0,0.00014246,2]
[333818565,1722528644004,-500.0,0.00014246,2]
[333818566,1722528644014,-500.0,0.00014246,2]
[333818567,1722528644025,-500.0,0.00014246,2]
[333818568,1722528644038,-520.19917064,0.00014246,2]
[333818569,1722528644048,-500.0,0.00014246,2]
[333818570,1722528644059,-500.0,0.00014246,2]
[333818571,1722528644069,-500.0,0.00014246,2]
[333818572,1722528644078,-550.1,0.00014246,2]
[333818573,1722528644088,-500.0,0.00014246,2]
[333818574,1722528644097,-500.0,0.00014246,2]
[333818575,1722528644106,-500.0,0.00014246,2]
[333818576,1722528644116,-500.0,0.00014246,2]
[333818577,1722528644126,-500.0,0.00014246,2]
[333818578,1722528644137,-500.0,0.00014246,2]
[333818579,1722528644147,-500.0,0.00014246,2]
[333818580,1722528644157,-500.0,0.00014246,2]
[333818581,1722528644166,-500.0,0.00014246,2]
[333818582,1722528644175,-907.32,0.00014246,2]
[333818583,1722528644186,-218.88167498,0.00014246,2]
[333818584,1722528644196,-1331.99,0.00014246,2]
[333818585,1722528644205,-500.0,0.00014246,2]
[333818586,1722528644217,-561.83,0.00014246,2]
[333818587,1722528644228,-838.19,0.00014246,2]
[333818588,1722528644239,-500.0,0.00014246,2]
[333818589,1722528644248,-500.0,0.00014246,2]
[333818590,1722528644257,-874.15,0.00014246,2]
[333818591,1722528644266,-538.3,0.00014246,2]
[333818592,1722528644276,-2132.52,0.00014246,2]
[333818593,1722528644285,-1895.04,0.00014246,2]
[333818594,1722528644295,-500.0,0.00014246,2]
[333818595,1722528644304,-500.0,0.00014246,2]
[333818596,1722528644314,-500.0,0.00014246,2]
[333818597,1722528644324,-510.79630798,0.00014246,2]
[333818598,1722528644333,-500.0,0.00014246,2]
[333818599,1722528644342,-500.0,0.00014246,2]
[333818600,1722528644352,-500.0,0.00014246,2]
[333818601,1722528644362,-500.0,0.00014246,2]
[333818602,1722528644372,-2759.59,0.00014246,2]
[333818603,1722528644381,-500.0,0.00014246,2]
[333818604,1722528644391,-500.0,0.00014246,2]
[333818605,1722528644400,-500.0,0.00014246,2]
[333818606,1722528644410,-686.04,0.00014246,2]
[333818607,1722528644420,-500.0,0.00014246,2]
[333818608,1722528644431,-785.38,0.00014246,2]
[333818609,1722528644441,-500.0,0.00014246,2]
[333818610,1722528644451,-500.0,0.00014246,2]
[333818611,1722528644460,-500.0,0.00014246,2]
[333818612,1722528644471,-815.61,0.00014246,2]
[333818613,1722528644481,-500.0,0.00014246,2]
[333818614,1722528644491,-500.0,0.00014246,2]
[333818615,1722528644502,-812.04,0.00014246,2]
[333818616,1722528644511,-500.0,0.00014246,2]
[333818617,1722528644521,-500.0,0.00014246,2]
[333818618,1722528644531,-2585.36,0.00014246,2]
[333818619,1722528644540,-547.45,0.00014246,2]
[333818620,1722528644550,-500.0,0.00014246,2]
[333818621,1722528644560,-500.0,0.00014246,2]
[333818622,1722528644569,-500.0,0.00014246,2]
[333818623,1722528644579,-500.0,0.00014246,2]
[333818624,1722528644588,-1517.4,0.00014246,2]
[333818625,1722528644597,-652.72,0.00014246,2]
[333818626,1722528644606,-500.0,0.00014246,2]
[333818627,1722528644616,-862.86,0.00014246,2]
[333818628,1722528644626,-500.0,0.00014246,2]
[333818629,1722528644635,-500.0,0.00014246,2]
[333818630,1722528644644,-500.0,0.00014246,2]
[333818631,1722528644654,-500.0,0.00014246,2]
[333818632,1722528644664,-500.0,0.00014246,2]
[333818633,1722528644674,-500.0,0.00014246,2]
[333818634,1722528644684,-500.0,0.00014246,2]
[333818635,1722528644694,-500.0,0.00014246,2]
[333818636,1722528644703,-500.0,0.00014246,2]
[333818637,1722528644712,-500.0,0.00014246,2]
[333818638,1722528644722,-506.50072876,0.00014246,2]
[333818639,1722528644738,-500.0,0.00014246,2]
[333818640,1722528644747,-500.0,0.00014246,2]
[333818641,1722528644757,-503.84237986,0.00014246,2]
[333818642,1722528644766,-500.0,0.00014246,2]
[333818643,1722528644778,-500.0,0.00014246,2]
[333818644,1722528644787,-500.0,0.00014246,2]
[333818645,1722528644796,-500.0,0.00014246,2]
[333818646,1722528644807,-500.0,0.00014246,2]
[333818647,1722528644824,-500.0,0.00014246,2]
[333818648,1722528644833,-500.0,0.00014246,2]
[333818649,1722528644842,-500.0,0.00014246,2]
[333818650,1722528644851,-700.06,0.00014246,2]
[333818651,1722528644860,-500.0,0.00014246,2]
[333818652,1722528644870,-548.51,0.00014246,2]
[333818653,1722528644880,-612.69,0.00014246,2]
[333818654,1722528644890,-500.0,0.00014246,2]
[333818655,1722528644899,-500.0,0.00014246,2]
[333818656,1722528644908,-500.0,0.00014246,2]
[333818657,1722528644918,-211.36,0.00014246,2]
[333818658,1722528644927,-618.917577,0.00014247,2]
[333818659,1722528644937,-178.125,0.00014247,2]
[333818660,1722528644946,-178.696435,0.00014363,2]
[333818661,1722528644956,-170.763194,0.00014363,2]
[333818662,1722528644965,-288.920834,0.00014363,2]
[333818663,1722528644974,-210.494126,0.00014363,2]
[333818664,1722528644984,-879.26,0.00014519,2]
[333818665,1722528644994,-500.0,0.0001452,2]
[333818666,1722528645004,-500.0,0.0001452,2]
[333818667,1722528645014,-500.0,0.0001452,2]
[333818668,1722528645023,-500.0,0.0001452,2]
[333818669,1722528645033,-500.0,0.0001452,2]
[333818670,1722528645042,-500.0,0.0001452,2]
[333818671,1722528645052,-500.0,0.0001452,2]
[333818672,1722528645062,-500.0,0.0001452,2]
[333818673,1722528645071,-371.21891152,0.0001452,2]
[333818674,1722528645081,-500.0,0.0001452,2]
[333818675,1722528645091,-500.0,0.0001452,2]
[333818676,1722528645101,-500.0,0.0001452,2]
[333818677,1722528645111,-500.0,0.0001452,2]
[333818678,1722528645120,-500.0,0.0001452,2]
[333818679,1722528645133,-500.0,0.0001452,2]
[333818680,1722528645143,-500.0,0.0001452,2]
[333818681,1722528645153,-550.1,0.0001452,2]
[333818682,1722528645163,-500.0,0.0001452,2]
[333818683,1722528645174,-367.27318489,0.0001452,2]
[333818684,1722528645184,-500.0,0.0001452,2]
[333818685,1722528645193,-500.0,0.0001452,2]
[333818686,1722528645203,-500.0,0.0001452,2]
[333818687,1722528645217,-500.0,0.0001452,2]
[333818688,1722528645227,-500.0,0.0001452,2]
[333818689,1722528645247,-500.0,0.0001452,2]
[333818690,1722528645260,-907.32,0.0001452,2]
[333818691,1722528645270,-1331.99,0.0001452,2]
[333818692,1722528645279,-500.0,0.0001452,2]
[333818693,1722528645290,-561.83,0.0001452,2]
[333818694,1722528645300,-838.19,0.0001452,2]
[333818695,1722528645309,-296.26201036,0.0001452,2]
[333818697,1722528645319,-500.0,0.0001452,2]
[333818698,1722528645328,-874.15,0.0001452,2]
[333818699,1722528645338,-538.3,0.0001452,2]
[333818700,1722528645347,-2132.52,0.0001452,2]
[333818701,1722528645357,-1895.04,0.0001452,2]
[333818702,1722528645367,-500.0,0.0001452,2]
[333818703,1722528645377,-500.0,0.0001452,2]
[333818704,1722528645387,-500.0,0.0001452,2]
[333818705,1722528645396,-523.71,0.0001452,2]
[333818706,1722528645406,-500.0,0.0001452,2]
[333818707,1722528645415,-500.0,0.0001452,2]
[333818708,1722528645425,-500.0,0.0001452,2]
[333818709,1722528645434,-2759.59,0.0001452,2]
[333818710,1722528645444,-500.0,0.0001452,2]
[333818711,1722528645454,-500.0,0.0001452,2]
[333818712,1722528645463,-686.04,0.0001452,2]
[333818713,1722528645473,-500.0,0.0001452,2]
[333818714,1722528645483,-785.38,0.0001452,2]
[333818715,1722528645493,-500.0,0.0001452,2]
[333818716,1722528645503,-500.0,0.0001452,2]
[333818717,1722528645514,-815.61,0.0001452,2]
[333818718,1722528645525,-500.0,0.0001452,2]
[333818719,1722528645535,-171.04417534,0.0001452,2]
[333818720,1722528645544,-812.04,0.0001452,2]
[333818722,1722528645554,-500.0,0.0001452,2]
[333818723,1722528645563,-500.0,0.0001452,2]
[333818724,1722528645573,-2585.36,0.0001452,2]
[333818726,1722528645584,-547.45,0.0001452,2]
[333818728,1722528645594,-500.0,0.0001452,2]
[333818730,1722528645604,-500.0,0.0001452,2]
[333818732,1722528645614,-1517.4,0.0001452,2]
[333818734,1722528645623,-652.72,0.0001452,2]
[333818736,1722528645632,-500.0,0.0001452,2]
[333818738,1722528645641,-862.86,0.0001452,2]
[333818740,1722528645651,-500.0,0.0001452,2]
[333818742,1722528645661,-500.0,0.0001452,2]
[333818744,1722528645670,-500.0,0.0001452,2]
[333818747,1722528645679,-500.0,0.0001452,2]
[333818749,1722528645689,-500.0,0.0001452,2]
[333818751,1722528645698,-500.0,0.0001452,2]
[333818754,1722528645708,-500.0,0.0001452,2]
[333818757,1722528645718,-500.0,0.0001452,2]
[333818759,1722528645728,-500.0,0.0001452,2]
[333818762,1722528645752,-500.0,0.0001452,2]
[333818765,1722528645761,-500.0,0.0001452,2]
[333818766,1722528645771,-500.0,0.0001452,2]
[333818767,1722528645781,-500.0,0.0001452,2]
[333818769,1722528645791,-500.0,0.0001452,2]
[333818770,1722528645800,-510.98180364,0.0001452,2]
[333818772,1722528645811,-500.0,0.0001452,2]
[333818782,1722528645887,-500.0,0.0001452,2]
[333818784,1722528645905,-500.0,0.0001452,2]
[333818786,1722528645915,-700.06,0.0001452,2]
[333818788,1722528645926,-500.0,0.0001452,2]
[333818790,1722528645935,-548.51,0.0001452,2]
[333818792,1722528645945,-612.69,0.0001452,2]
[333818793,1722528645954,-500.0,0.0001452,2]
[333818795,1722528645964,-500.0,0.0001452,2]
[333818797,1722528645973,-600.0,0.00014647,2]
[333818799,1722528645983,-30000.0,0.0001469,2]
[333818801,1722528645993,-30000.0,0.0001469,2]
[333818803,1722528646003,-879.26,0.00014793,2]
[333818805,1722528646012,-879.26,0.00014793,2]
[333818807,1722528646022,-879.26,0.00014793,2]
[333818809,1722528646034,-879.26,0.00014793,2]
[333818811,1722528646044,-879.31,0.00014793,2]
[333818813,1722528646053,-500.0,0.00014794,2]
[333818815,1722528646063,-500.0,0.00014794,2]
[333818817,1722528646072,-500.0,0.00014794,2]
[333818818,1722528646082,-500.0,0.00014794,2]
[333818820,1722528646092,-500.0,0.00014794,2]
[333818822,1722528646102,-500.0,0.00014794,2]
[333818824,1722528646112,-500.0,0.00014794,2]
[333818826,1722528646121,-500.0,0.00014794,2]
[333818828,1722528646131,-500.0,0.00014794,2]
[333818830,1722528646143,-500.0,0.00014794,2]
[333818831,1722528646153,-500.0,0.00014794,2]
[333818833,1722528646162,-500.0,0.00014794,2]
[333818835,1722528646173,-550.1,0.00014794,2]
[333818836,1722528646185,-500.0,0.00014794,2]
[333818837,1722528646195,-500.0,0.00014794,2]
[333818838,1722528646204,-500.0,0.00014794,2]
[333818839,1722528646215,-500.0,0.00014794,2]
[333818840,1722528646224,-500.0,0.00014794,2]
[333818841,1722528646242,-500.0,0.00014794,2]
[333818842,1722528646259,-500.0,0.00014794,2]
[333818843,1722528646268,-907.32,0.00014794,2]
[333818844,1722528646277,-1331.99,0.00014794,2]
[333818845,1722528646287,-500.0,0.00014794,2]
[333818846,1722528646297,-561.83,0.00014794,2]
[333818847,1722528646307,-838.19,0.00014794,2]
[333818848,1722528646316,-500.0,0.00014794,2]
[333818849,1722528646325,-874.15,0.00014794,2]
[333818850,1722528646337,-538.3,0.00014794,2]
[333818852,1722528646346,-2132.52,0.00014794,2]
[333818854,1722528646355,-1895.04,0.00014794,2]
[333818856,1722528646364,-500.0,0.00014794,2]
[333818858,1722528646374,-500.0,0.00014794,2]
[333818859,1722528646383,-500.0,0.00014794,2]
[333818860,1722528646392,-500.0,0.00014794,2]
[333818861,1722528646401,-500.0,0.00014794,2]
[333818862,1722528646410,-500.0,0.00014794,2]
[333818864,1722528646419,-2759.59,0.00014794,2]
[333818865,1722528646429,-500.0,0.00014794,2]
[333818866,1722528646439,-500.0,0.00014794,2]
[333818867,1722528646448,-686.04,0.00014794,2]
[333818868,1722528646458,-500.0,0.00014794,2]
[333818869,1722528646468,-785.38,0.00014794,2]
[333818870,1722528646477,-500.0,0.00014794,2]
[333818871,1722528646487,-500.0,0.00014794,2]
[333818872,1722528646497,-815.61,0.00014794,2]
[333818873,1722528646506,-500.0,0.00014794,2]
[333818874,1722528646528,-812.04,0.00014794,2]
[333818875,1722528646539,-500.0,0.00014794,2]
[333818876,1722528646549,-500.0,0.00014794,2]
[333818877,1722528646558,-2585.36,0.00014794,2]
[333818878,1722528646568,-547.45,0.00014794,2]
[333818879,1722528646578,-500.0,0.00014794,2]
[333818880,1722528646588,-500.0,0.00014794,2]
[333818881,1722528646597,-1517.4,0.00014794,2]
[333818882,1722528646608,-652.72,0.00014794,2]
[333818883,1722528646618,-355.57053025,0.00014794,2]
[333818884,1722528646627,-862.86,0.00014794,2]
[333818885,1722528646638,-500.0,0.00014794,2]
[333818886,1722528646648,-500.0,0.00014794,2]
[333818887,1722528646658,-500.0,0.00014794,2]
[333818888,1722528646668,-500.0,0.00014794,2]
[333818889,1722528646678,-500.0,0.00014794,2]
[333818890,1722528646688,-500.0,0.00014794,2]
[333818891,1722528646698,-500.0,0.00014794,2]
[333818892,1722528646707,-500.0,0.00014794,2]
[333818893,1722528646717,-508.94574006,0.00014794,2]
[333818894,1722528646726,-500.0,0.00014794,2]
[333818895,1722528646750,-500.0,0.00014794,2]
[333818896,1722528646762,-500.0,0.00014794,2]
[333818897,1722528646771,-500.0,0.00014794,2]
[333818898,1722528646781,-506.53640605,0.00014794,2]
[333818899,1722528646791,-500.0,0.00014794,2]
[333818900,1722528646801,-700.06,0.00014794,2]
[333818901,1722528646811,-500.0,0.00014794,2]
[333818902,1722528646820,-500.0,0.00014794,2]
[333818903,1722528646830,-548.51,0.00014794,2]
[333818904,1722528646840,-612.69,0.00014794,2]
[333818905,1722528646850,-500.0,0.00014794,2]
[333818906,1722528646860,-285.16503747,0.00014794,2]
[333818907,1722528646869,-500.0,0.00015068,2]
[333818908,1722528646879,-500.0,0.00015068,2]
[333818909,1722528646888,-500.0,0.00015068,2]
[333818910,1722528646897,-500.0,0.00015068,2]
[333818911,1722528646907,-500.0,0.00015068,2]
[333818912,1722528646916,-500.0,0.00015068,2]
[333818913,1722528646925,-500.0,0.00015068,2]
[333818914,1722528646935,-500.0,0.00015068,2]
[333818915,1722528646946,-500.0,0.00015068,2]
[333818916,1722528646955,-500.0,0.00015068,2]
[333818917,1722528646965,-500.0,0.00015068,2]
[333818918,1722528646975,-500.0,0.00015068,2]
[333818919,1722528646984,-550.1,0.00015068,2]
[333818920,1722528646994,-500.0,0.00015068,2]
[333818921,1722528647005,-500.0,0.00015068,2]
[333818922,1722528647015,-500.0,0.00015068,2]
[333818923,1722528647024,-500.0,0.00015068,2]
[333818924,1722528647034,-500.0,0.00015068,2]
[333818925,1722528647044,-500.0,0.00015068,2]
[333818926,1722528647053,-500.0,0.00015068,2]
[333818927,1722528647063,-907.32,0.00015068,2]
[333818928,1722528647073,-1331.99,0.00015068,2]
[333818929,1722528647083,-500.0,0.00015068,2]
[333818930,1722528647092,-838.19,0.00015068,2]
[333818931,1722528647102,-561.83,0.00015068,2]
[333818932,1722528647111,-500.0,0.00015068,2]
[333818933,1722528647121,-874.15,0.00015068,2]
[333818934,1722528647132,-538.3,0.00015068,2]
[333818935,1722528647145,-2132.52,0.00015068,2]
[333818936,1722528647154,-1895.04,0.00015068,2]
[333818937,1722528647164,-500.0,0.00015068,2]
[333818938,1722528647174,-500.0,0.00015068,2]
[333818939,1722528647184,-500.0,0.00015068,2]
[333818940,1722528647194,-500.0,0.00015068,2]
[333818941,1722528647203,-500.0,0.00015068,2]
[333818942,1722528647214,-500.0,0.00015068,2]
[333818943,1722528647224,-2759.59,0.00015068,2]
[333818944,1722528647234,-500.0,0.00015068,2]
[333818945,1722528647260,-500.0,0.00015068,2]
[333818946,1722528647270,-686.04,0.00015068,2]